[Event "XXIX Cracovia 2018"]
[Site "Krakow"]
[Date "2019.01.03"]
[Round "8"]
[White "Brozyna, Mateusz"]
[Black "Belous, Mikhail"]
[Result "0-1"]
[ECO "B90"]
[WhiteElo "2173"]
[BlackElo "2299"]
[Annotator "NA"]
[PlyCount "64"]
[EventDate "2018.12.27"]
[EventType "swiss"]
[EventCountry "POL"]
[SourceTitle "playchess.com"]
[Source "ChessBase"]
[SourceQuality "1"]
[TimeControl "40/5400+30:1800+30"]

1. e4 {[%emt 0:00:00]} c5 {[%emt 0:00:00]} 2. Nf3 {[%emt 0:00:00]} d6 {[%emt 0:00:00]} 3. d4 {[%emt 0:00:00]} cxd4 {[%emt 0:00:00]} 4. Nxd4 {[%emt 0:00:00]} Nf6 {[%emt 0:00:00]} 5. Nc3 {[%emt 0:00:06]} a6 {[%emt 0:00:00]} 6. Bc4 {[%emt 0:00:06]} e6 {[%emt 0:00:00]} 7. O-O {[%emt 0:00:08]} Be7 {[%emt 0:01:03]} 8. a3 {[%emt 0:00:08]} O-O {[%emt 0:01:09]} 9. Ba2 {[%emt 0:00:06]} b5 {[%emt 0:04:06]} 10. f4 {[%emt 0:00:10]} Bb7 {[%emt 0:01:33]} 11. f5 {[%emt 0:02:02]} e5 {[%emt 0:01:06]} 12. Nde2 {[%emt 0:00:41]} Nbd7 {[%emt 0:03:10]} 13. Ng3 {[%emt 0:00:49]} Rc8 {[%emt 0:01:43]} 14. Qe2 {[%emt 0:05:47]} Nb6 {[%emt 0:03:39]} 15. Bg5 {[%emt 0:10:07]} Nc4 {[%emt 0:10:53]} 16. Bxc4 {[%emt 0:03:30]} Rxc4 {[%emt 0:00:41]} 17. Rad1 {[%emt 0:04:02]} Rd4 {[%emt 0:15:13]} 18. Bxf6 {[%emt 0:10:47]} Bxf6 {[%emt 0:00:17]} 19. Nh5 {[%emt 0:09:12]} Qe7 {[%emt 0:06:46]} 20. Rd3 {[%emt 0:06:47]} Kh8 {[%emt 0:08:34]} 21. Rh3 {[%emt 0:01:15]} g6 {[%emt 0:08:02]} 22. Qf3 {[%emt 0:03:55]} g5 {[%emt 0:06:08]} 23. Nf4 {[%emt 0:04:48]} gxf4 {[%emt 0:06:30]} 24. Qh5 {[%emt 0:03:08]} Bh4 {[%emt 0:00:11]} 25. Rxh4 {[%emt 0:00:58]} f6 {[%emt 0:00:09]} 26. Rd1 {[%emt 0:09:03]} Rg8 {[%emt 0:07:48]} 27. Qe2 {[%emt 0:06:06]} Bc6 {[%emt 0:03:37]} 28. Kh1 {[%emt 0:01:41]} a5 {[%emt 0:01:51]} 29. h3 {[%emt 0:10:50]} b4 {[%emt 0:00:52]} 30. axb4 {[%emt 0:01:06]} axb4 {[%emt 0:00:07]} 31. Nd5 {[%emt 0:00:55]} Bxd5 {[%emt 0:00:30]} 32. exd5 {[%emt 0:00:05]} f3 {[%emt 0:01:03]} 0-1

[Event "XXIX Cracovia 2018"]
[Site "Krakow"]
[Date "2019.01.03"]
[Round "8"]
[White "Strybuk, Artsiom I"]
[Black "Colijn, Stefan"]
[Result "1/2-1/2"]
[ECO "D15"]
[WhiteElo "2172"]
[BlackElo "2331"]
[Annotator "NA"]
[PlyCount "191"]
[EventDate "2018.12.27"]
[EventType "swiss"]
[EventCountry "POL"]
[SourceTitle "playchess.com"]
[Source "ChessBase"]
[SourceQuality "1"]
[TimeControl "40/5400+30:1800+30"]

1. c4 c6 2. d4 d5 3. Nf3 Nf6 4. Nc3 a6 5. c5 g6 6. Ne5 {D15: Slav Defence: 4 Nc3 a6 and gambit lines after 4 Nc3 dxc4} (6. Bf4 Bg7 7. h3 O-O 8. e3 Bf5 9. Be2 Nbd7 10. Ne5 Ne4 11. Nxe4 Bxe4 12. O-O Nxe5 13. Bxe5 f6 14. Bg3 e5 15. Qd2 Qe7 16. b4 {½-½ (34) Yu,Y (2751)-Artemiev,V (2691) Huaian 2017}) 6... Bg7 7. e3 O-O 8. f4 Nfd7 9. Nd3 $146 ({Predecessor:} 9. Be2 f6 10. Nxd7 Nxd7 11. O-O e5 12. b4 Re8 {0-1 (25) Puskar,J (2011)-Macko,M (2123) Slovakia 2012}) 9... f6 10. f5 Re8 11. Nf4 Nf8 12. fxg6 hxg6 13. Bd3 f5 14. O-O e5 15. dxe5 Nbd7 16. Na4 Nxe5 17. Be2 Ned7 18. Bd2 Nf6 19. Bf3 Be6 20. Bc3 Bf7 21. Bd4 N8d7 22. Nc3 Ne5 23. b3 Qc7 24. Qd2 Rad8 25. Rae1 Re7 26. Bd1 Rde8 27. Bc2 Bh6 28. h3 Qc8 29. Qf2 Ne4 30. Nxe4 dxe4 31. Kh1 g5 32. Ne2 Bg6 33. Rd1 Kh7 34. Qg3 Qe6 35. h4 Bh5 36. Rd2 Bxe2 37. Rxe2 Ng4 38. Ree1 Qf7 39. Bd1 gxh4 40. Qxh4 Rg8 41. Rxf5 Qxf5 42. Qxe7+ Bg7 43. Qh4+ Bh6 44. Kg1 Rg5 45. Rf1 Qg6 46. Bxg4 Rxg4 47. Qe7+ Bg7 48. Qxg7+ Qxg7 49. Bxg7 Rxg7 50. Rf4 Re7 51. Kf2 Kg6 52. b4 Re5 53. a3 a5 54. g3 Kg5 55. Ke2 Kg6 56. Ke1 Kg5 57. Kf1 Kg6 58. Ke2 Kg5 59. Rf7 axb4 60. axb4 b6 61. cxb6 Rb5 62. b7 Rxb4 63. Kd2 Kg6 64. Rc7 c5 65. Kc3 Kf6 66. Rc6+ Ke7 67. Rxc5 Rxb7 68. Re5+ Kf6 69. Rxe4 Kf5 70. Rf4+ Ke5 71. Kd3 Rb2 72. Rg4 Kf5 73. Rf4+ Ke5 74. Re4+ Kf5 75. g4+ Kg5 76. Rf4 Rb3+ 77. Ke4 Rb1 78. Kf3 Rf1+ 79. Kg3 Rg1+ 80. Kh3 Re1 81. Rf5+ Kg6 82. Re5 Kf6 83. Re8 Kg5 84. Kg3 Rg1+ 85. Kf3 Rf1+ 86. Ke4 Ra1 87. Rg8+ Kf6 88. Rd8 Rg1 89. Rd6+ Ke7 90. Rg6 Kf7 91. Rg5 Ke6 $1 92. Re5+ ({Better is} 92. Kf3 $18) 92... Kd6 93. Rd5+ Ke6 94. Re5+ Kd6 95. Rg5 Ke6 96. Re5+ $2 1/2-1/2

[Event "XXIX Cracovia 2018"]
[Site "Krakow"]
[Date "2019.01.03"]
[Round "8"]
[White "Popescu, Florin"]
[Black "Smal, Tobiasz"]
[Result "0-1"]
[ECO "E62"]
[WhiteElo "2099"]
[BlackElo "1958"]
[Annotator "NA"]
[PlyCount "90"]
[EventDate "2018.12.27"]
[EventType "swiss"]
[EventCountry "POL"]
[SourceTitle "playchess.com"]
[Source "ChessBase"]
[SourceQuality "1"]
[TimeControl "40/5400+30:1800+30"]

1. d4 {[%emt 0:00:00]} Nf6 {[%emt 0:00:00]} 2. Nf3 {[%emt 0:00:00]} g6 {[%emt 0:00:00]} 3. g3 {[%emt 0:00:00]} Bg7 {[%emt 0:00:13]} 4. Bg2 {[%emt 0:00:00]} O-O {[%emt 0:00:06]} 5. c4 {[%emt 0:00:04]} d6 {[%emt 0:00:24]} 6. Nc3 {[%emt 0:00:08]} Nc6 {[%emt 0:00:52]} 7. O-O {[%emt 0:00:09]} Bf5 {[%emt 0:03:09]} 8. d5 {[%emt 0:00:30]} Na5 {[%emt 0:00:31]} 9. Nd4 {[%emt 0:00:21]} Bd7 {[%emt 0:01:21]} 10. b3 {[%emt 0:00:24]} c5 {[%emt 0:01:37]} 11. dxc6 {[%emt 0:00:07]} Nxc6 {[%emt 0:00:21]} 12. Bb2 {[%emt 0:00:29]} Qa5 {[%emt 0:08:48]} 13. h3 Rac8 {[%emt 0:00:30]} 14. e3 a6 {[%emt 0:00:30]} 15. Qe2 Rfe8 {[%emt 0:00:30]} 16. a3 {[%emt 1:04:17]} Qb6 {[%emt 0:00:30]} 17. Nxc6 {[%emt 0:00:30]} Bxc6 {[%emt 0:00:30]} 18. Bxc6 {[%emt 0:00:30]} Rxc6 19. Qd1 e6 {[%emt 0:49:35]} 20. Rc1 {[%emt 0:13:46]} Rec8 {[%emt 0:02:01]} 21. Kg2 {[%emt 0:08:26]} h5 {[%emt 0:02:52]} 22. Na4 {[%emt 0:01:51]} Qa5 {[%emt 0:01:42]} 23. Qd3 {[%emt 0:03:09]} b5 24. cxb5 {[%emt 0:00:30]} axb5 25. Rxc6 {[%emt 0:00:30]} Rxc6 {[%emt 0:07:36]} 26. Nc3 b4 {[%emt 0:00:30]} 27. axb4 {[%emt 0:01:40]} Qxb4 {[%emt 0:00:01]} 28. Ne2 {[%emt 0:01:08]} Rb6 {[%emt 0:01:44]} 29. Rd1 {[%emt 0:01:35]} d5 {[%emt 0:01:15]} 30. Nc1 {[%emt 0:00:16]} h4 {[%emt 0:05:24]} 31. Bd4 {[%emt 0:00:54]} Rc6 {[%emt 0:02:50]} 32. gxh4 {[%emt 0:00:15]} Qd6 {[%emt 0:00:00]} 33. Ne2 {[%emt 0:00:30]} e5 {[%emt 0:00:00]} 34. Bc3 {[%emt 0:00:30]} Ne4 {[%emt 0:00:00]} 35. Be1 {[%emt 0:00:30]} Nf6 {[%emt 0:00:00]} 36. Nc3 {[%emt 0:00:30]} d4 {[%emt 0:00:00]} 37. exd4 {[%emt 0:00:30]} exd4 {[%emt 0:00:00]} 38. Qxd4 {[%emt 0:00:30]} Qe6 {[%emt 0:00:00]} 39. Nd5 {[%emt 0:00:30]} Nh5 40. Qe3 Be5 41. Qf3 {[%emt 0:13:17]} Rd6 {[%emt 0:14:51]} 42. Kf1 {[%emt 0:02:00]} Rd7 {[%emt 0:06:49]} 43. Bc3 {[%emt 0:02:58]} Bxc3 {[%emt 0:09:08]} 44. Nxc3 {[%emt 0:00:09]} Rxd1+ {[%emt 0:01:48]} 45. Nxd1 {[%emt 0:00:16]} Nf6 {[%emt 0:01:26]} 0-1

[Event "XXIX Cracovia 2018"]
[Site "Krakow"]
[Date "2019.01.03"]
[Round "8"]
[White "Romashov, Anton"]
[Black "Brylski, Pawel"]
[Result "1-0"]
[ECO "A08"]
[WhiteElo "2076"]
[BlackElo "1975"]
[Annotator "NA"]
[PlyCount "109"]
[EventDate "2018.12.27"]
[EventType "swiss"]
[EventCountry "POL"]
[SourceTitle "playchess.com"]
[Source "ChessBase"]
[SourceQuality "1"]
[TimeControl "40/5400+30:1800+30"]

1. Nf3 {[%emt 0:00:00]} d5 {[%emt 0:00:16]} 2. g3 {[%emt 0:00:13]} c5 {[%emt 0:00:34]} 3. Bg2 {[%emt 0:00:11]} Nc6 {[%emt 0:00:09]} 4. c4 {[%emt 0:02:02]} d4 {[%emt 0:00:35]} 5. O-O {[%emt 0:01:25]} e5 {[%emt 0:00:41]} 6. d3 {[%emt 0:01:11]} Be7 {[%emt 0:01:15]} 7. e3 {[%emt 0:01:11]} Qc7 {[%emt 0:03:55]} 8. exd4 {[%emt 0:01:00]} cxd4 {[%emt 0:00:09]} 9. Na3 {[%emt 0:04:39]} Bg4 {[%emt 0:10:35]} 10. Qa4 {[%emt 0:05:20]} Bd7 {[%emt 0:03:20]} 11. Re1 {[%emt 0:02:42]} f6 {[%emt 0:05:08]} 12. Bd2 {[%emt 0:05:07]} Qc8 {[%emt 0:10:41]} 13. Qd1 {[%emt 0:07:05]} a6 {[%emt 0:12:58]} 14. Nc2 {[%emt 0:00:50]} Bf5 {[%emt 0:00:57]} 15. Qe2 {[%emt 0:00:30]} a5 {[%emt 0:01:42]} 16. Nh4 {[%emt 0:05:42]} Bg4 {[%emt 0:08:27]} 17. f3 {[%emt 0:03:39]} Bh3 {[%emt 0:09:56]} 18. f4 {[%emt 0:03:59]} Bxg2 {[%emt 0:00:21]} 19. Kxg2 {[%emt 0:01:04]} Qe6 {[%emt 0:03:50]} 20. Nf3 {[%emt 0:00:56]} O-O-O {[%emt 0:08:02]} 21. fxe5 {[%emt 0:01:30]} f5 {[%emt 0:01:54]} 22. Qf2 {[%emt 0:04:28]} Bc5 {[%emt 0:04:40]} 23. Ng5 {[%emt 0:00:55]} Qg6 {[%emt 0:00:31]} 24. e6 {[%emt 0:02:23]} Nh6 {[%emt 0:00:12]} 25. h3 {[%emt 0:08:23]} Rhe8 {[%emt 0:03:31]} 26. Re2 {[%emt 0:00:51]} Re7 {[%emt 0:00:46]} 27. Rae1 {[%emt 0:01:50]} Rde8 {[%emt 0:00:29]} 28. Qf4 {[%emt 0:02:54]} Ng8 {[%emt 0:02:59]} 29. a3 {[%emt 0:03:41]} h6 {[%emt 0:01:43]} 30. Nf3 {[%emt 0:00:25]} Rxe6 {[%emt 0:00:10]} 31. Rxe6 {[%emt 0:00:33]} Rxe6 {[%emt 0:00:01]} 32. Nfxd4 {[%emt 0:01:58]} Rxe1 {[%emt 0:02:08]} 33. Bxe1 {[%emt 0:00:21]} Nge7 {[%emt 0:00:24]} 34. Nb5 {[%emt 0:01:47]} Kd7 {[%emt 0:01:32]} 35. d4 {[%emt 0:03:21]} Bd6 {[%emt 0:00:22]} 36. Nxd6 {[%emt 0:00:35]} Qxd6 {[%emt 0:00:02]} 37. d5 {[%emt 0:00:48]} Ne5 {[%emt 0:01:10]} 38. Bxa5 {[%emt 0:00:51]} g5 {[%emt 0:00:50]} 39. Qd4 {[%emt 0:01:15]} f4 {[%emt 0:01:03]} 40. Bc3 {[%emt 0:00:00]} f3+ {[%emt 0:00:00]} 41. Kf2 {[%emt 0:07:36]} N7g6 {[%emt 0:08:37]} 42. Qe4 {[%emt 0:04:14]} Kd8 {[%emt 0:05:16]} 43. Ne3 {[%emt 0:03:40]} h5 {[%emt 0:01:25]} 44. Qf5 {[%emt 0:10:15]} h4 {[%emt 0:08:26]} 45. Qxg5+ {[%emt 0:00:23]} Kc7 {[%emt 0:00:45]} 46. gxh4 {[%emt 0:06:32]} Nd3+ {[%emt 0:01:15]} 47. Kxf3 {[%emt 0:00:19]} Qf8+ {[%emt 0:01:50]} 48. Bf6 {[%emt 0:04:30]} Qe8 {[%emt 0:02:36]} 49. h5 {[%emt 0:03:45]} Ngf4 {[%emt 0:02:58]} 50. Be5+ {[%emt 0:03:02]} Nxe5+ {[%emt 0:00:24]} 51. Kxf4 {[%emt 0:00:03]} Nd3+ {[%emt 0:00:50]} 52. Kf3 {[%emt 0:00:33]} Qf7+ {[%emt 0:01:49]} 53. Qf5 {[%emt 0:00:49]} Ne1+ {[%emt 0:00:50]} 54. Ke2 {[%emt 0:00:33]} Qe7 {[%emt 0:00:02]} 55. Qf4+ {[%emt 0:00:14]} 1-0

[Event "XXIX Cracovia 2018"]
[Site "Krakow"]
[Date "2019.01.03"]
[Round "8"]
[White "Siprashvili, Ivane"]
[Black "Budnik, Mateusz"]
[Result "1-0"]
[ECO "D02"]
[WhiteElo "2074"]
[BlackElo "2053"]
[Annotator "NA"]
[PlyCount "73"]
[EventDate "2018.12.27"]
[EventType "swiss"]
[EventCountry "POL"]
[SourceTitle "playchess.com"]
[Source "ChessBase"]
[SourceQuality "1"]
[TimeControl "40/5400+30:1800+30"]

1. Nf3 d5 2. d4 Nf6 3. Bf4 Bf5 4. e3 e6 5. Nbd2 Bd6 6. Ne5 O-O 7. Be2 Nfd7 8. Nxd7 Qxd7 9. Bg3 c5 10. c3 cxd4 11. exd4 Nc6 12. Bxd6 Qxd6 13. O-O Rac8 14. Re1 a6 15. Nb3 Nb8 16. a4 Nd7 17. a5 Rb8 18. Nc1 Rfc8 19. Bd3 Bxd3 20. Nxd3 Re8 21. Qf3 Rbc8 22. Re3 Nf6 23. Ne5 Re7 24. Qg3 Nd7 25. Ng6 e5 26. Nxe7+ Qxe7 27. dxe5 Nc5 28. Qg4 Re8 29. Rae1 Qc7 30. h4 Ne6 31. f4 Qxa5 32. f5 Nf8 33. Qd4 Qb5 34. h5 Rc8 35. e6 fxe6 36. fxe6 Re8 37. e7 1-0

[Event "XXIX Cracovia 2018"]
[Site "Krakow"]
[Date "2019.01.03"]
[Round "8"]
[White "Patsia, Zviad"]
[Black "Jankowiak, Tomasz"]
[Result "1-0"]
[ECO "A22"]
[WhiteElo "2058"]
[BlackElo "2070"]
[Annotator "NA"]
[PlyCount "85"]
[EventDate "2018.12.27"]
[EventType "swiss"]
[EventCountry "POL"]
[SourceTitle "playchess.com"]
[Source "ChessBase"]
[SourceQuality "1"]
[TimeControl "40/5400+30:1800+30"]

1. c4 {[%emt 0:00:00]} e5 {[%emt 0:00:00]} 2. Nc3 {[%emt 0:00:00]} Nf6 {[%emt 0:00:00]} 3. g3 {[%emt 0:00:00]} d5 {[%emt 0:00:00]} 4. cxd5 {[%emt 0:00:00]} Nxd5 {[%emt 0:00:00]} 5. Bg2 {[%emt 0:00:00]} Nb6 {[%emt 0:00:01]} 6. Nf3 {[%emt 0:00:13]} Nc6 {[%emt 0:00:10]} 7. O-O {[%emt 0:00:10]} Be7 {[%emt 0:01:42]} 8. d3 {[%emt 0:00:21]} O-O {[%emt 0:00:40]} 9. Be3 {[%emt 0:09:25]} Be6 {[%emt 0:18:46]} 10. Ne4 {[%emt 0:03:10]} Nd5 {[%emt 0:18:43]} 11. Bc5 {[%emt 0:01:08]} f6 {[%emt 0:04:37]} 12. Bxe7 {[%emt 0:01:12]} Qxe7 {[%emt 0:06:04]} 13. Rc1 {[%emt 0:00:55]} Bf7 {[%emt 0:01:41]} 14. Nc5 {[%emt 0:03:46]} Nd8 {[%emt 0:08:10]} 15. Nh4 {[%emt 0:11:35]} c6 {[%emt 0:15:10]} 16. e4 {[%emt 0:01:26]} Nb6 {[%emt 0:02:12]} 17. Nf5 {[%emt 0:01:38]} Qc7 {[%emt 0:01:20]} 18. d4 {[%emt 0:01:23]} g6 {[%emt 0:04:24]} 19. Nh6+ {[%emt 0:03:55]} Kg7 {[%emt 0:00:16]} 20. Nxf7 {[%emt 0:01:06]} Qxf7 {[%emt 0:02:46]} 21. dxe5 {[%emt 0:04:42]} fxe5 {[%emt 0:00:05]} 22. b3 {[%emt 0:00:31]} Nc8 {[%emt 0:04:32]} 23. f4 {[%emt 0:02:04]} Ne6 {[%emt 0:02:46]} 24. fxe5 {[%emt 0:03:12]} Qe7 {[%emt 0:00:09]} 25. Rxf8 {[%emt 0:00:46]} Nxf8 {[%emt 0:01:38]} 26. Qd4 {[%emt 0:01:41]} Ne6 {[%emt 0:00:13]} 27. Nxe6+ {[%emt 0:00:07]} Qxe6 {[%emt 0:00:04]} 28. Rf1 {[%emt 0:00:06]} Nb6 {[%emt 0:01:17]} 29. Rf6 {[%emt 0:01:36]} Qe7 {[%emt 0:00:05]} 30. Bh3 {[%emt 0:00:55]} Rd8 {[%emt 0:05:27]} 31. Rd6 {[%emt 0:00:23]} Rf8 {[%emt 0:00:32]} 32. a4 {[%emt 0:00:14]} c5 {[%emt 0:01:23]} 33. Qxc5 {[%emt 0:00:05]} Kh8 {[%emt 0:00:27]} 34. a5 {[%emt 0:01:48]} Na8 {[%emt 0:00:15]} 35. e6 {[%emt 0:00:57]} Qf6 {[%emt 0:01:12]} 36. Qd4 {[%emt 0:00:25]} Qxd4+ {[%emt 0:00:31]} 37. Rxd4 {[%emt 0:00:04]} Re8 {[%emt 0:00:06]} 38. Rd7 {[%emt 0:00:07]} b6 {[%emt 0:00:07]} 39. b4 {[%emt 0:00:17]} bxa5 {[%emt 0:00:47]} 40. bxa5 {[%emt 0:00:00]} a6 {[%emt 0:00:00]} 41. Kf2 {[%emt 0:01:07]} Kg8 {[%emt 0:00:08]} 42. Ke3 {[%emt 0:00:04]} Rb8 {[%emt 0:00:07]} 43. Kd4 {[%emt 0:00:34]} 1-0

[Event "XXIX Cracovia 2018"]
[Site "Krakow"]
[Date "2019.01.03"]
[Round "8"]
[White "Skomial, Mateusz"]
[Black "Jankowiak, Piotr"]
[Result "0-1"]
[ECO "C90"]
[WhiteElo "2050"]
[BlackElo "1952"]
[Annotator "NA"]
[PlyCount "106"]
[EventDate "2018.12.27"]
[EventType "swiss"]
[EventCountry "POL"]
[SourceTitle "playchess.com"]
[Source "ChessBase"]
[SourceQuality "1"]
[TimeControl "40/5400+30:1800+30"]

1. e4 {[%emt 0:03:09]} e5 {[%emt 0:00:00]} 2. Nf3 {[%emt 0:02:51]} Nc6 {[%emt 0:00:00]} 3. Bb5 {[%emt 0:00:11]} a6 {[%emt 0:00:00]} 4. Ba4 {[%emt 0:00:03]} Nf6 {[%emt 0:00:06]} 5. O-O {[%emt 0:00:05]} Be7 {[%emt 0:00:07]} 6. Re1 {[%emt 0:00:10]} b5 {[%emt 0:00:05]} 7. Bb3 {[%emt 0:00:01]} O-O {[%emt 0:00:07]} 8. d3 {[%emt 0:01:17]} d6 {[%emt 0:00:57]} 9. c3 {[%emt 0:00:47]} Na5 {[%emt 0:12:30]} 10. Bc2 {[%emt 0:01:12]} c5 {[%emt 0:00:28]} 11. Nbd2 {[%emt 0:00:32]} Nc6 {[%emt 0:08:24]} 12. Nf1 {[%emt 0:00:39]} Re8 {[%emt 0:00:50]} 13. Bg5 {[%emt 0:03:26]} h6 {[%emt 0:17:12]} 14. Bh4 {[%emt 0:00:36]} g5 {[%emt 0:03:50]} 15. Bg3 {[%emt 0:00:10]} Bf8 {[%emt 0:00:18]} 16. Ne3 {[%emt 0:04:56]} Bg7 {[%emt 0:00:50]} 17. h4 {[%emt 0:04:52]} g4 {[%emt 0:07:10]} 18. Nd2 {[%emt 0:00:27]} Bd7 {[%emt 0:03:30]} 19. Bb3 {[%emt 0:03:00]} Ne7 {[%emt 0:05:42]} 20. f3 {[%emt 0:04:05]} h5 {[%emt 0:06:13]} 21. Rf1 {[%emt 0:03:48]} Qb6 {[%emt 0:02:02]} 22. c4 {[%emt 0:03:58]} b4 {[%emt 0:04:19]} 23. fxg4 {[%emt 0:06:20]} hxg4 {[%emt 0:05:10]} 24. Nf5 {[%emt 0:01:41]} Nxf5 {[%emt 0:02:20]} 25. exf5 {[%emt 0:03:04]} Qb7 {[%emt 0:05:19]} 26. Bc2 {[%emt 0:05:44]} d5 {[%emt 0:04:16]} 27. cxd5 {[%emt 0:05:34]} Qxd5 {[%emt 0:00:13]} 28. Ne4 {[%emt 0:00:37]} Nxe4 {[%emt 0:02:52]} 29. dxe4 {[%emt 0:00:07]} Qxd1 {[%emt 0:00:31]} 30. Rfxd1 {[%emt 0:01:06]} Bb5 {[%emt 0:02:34]} 31. Bf2 {[%emt 0:00:30]} c4 {[%emt 0:02:41]} 32. Kh2 {[%emt 0:00:44]} Red8 {[%emt 0:02:37]} 33. Bb6 {[%emt 0:08:39]} Rdb8 {[%emt 0:02:03]} 34. Be3 {[%emt 0:00:08]} c3 {[%emt 0:00:23]} 35. b3 {[%emt 0:04:07]} a5 {[%emt 0:00:54]} 36. Kg3 {[%emt 0:03:32]} a4 {[%emt 0:00:29]} 37. Re1 {[%emt 0:00:07]} Rd8 {[%emt 0:00:50]} 38. Red1 {[%emt 0:04:44]} a3 {[%emt 0:00:34]} 39. Bb6 {[%emt 0:06:45]} Rdb8 {[%emt 0:00:01]} 40. Be3 {[%emt 0:00:00]} Rd8 {[%emt 0:00:00]} 41. Rd5 {[%emt 0:16:09]} Rxd5 {[%emt 0:08:03]} 42. exd5 {[%emt 0:00:08]} e4 {[%emt 0:00:31]} 43. Bf4 {[%emt 0:02:13]} Bd3 {[%emt 0:01:10]} 44. Rc1 {[%emt 0:00:14]} Ra5 {[%emt 0:05:20]} 45. Kxg4 {[%emt 0:08:42]} Rxd5 {[%emt 0:00:17]} 46. h5 {[%emt 0:00:35]} Kh7 {[%emt 0:08:45]} 47. Be3 {[%emt 0:01:19]} Bh6 {[%emt 0:02:03]} 48. Bf4 {[%emt 0:05:21]} Bxf4 {[%emt 0:03:23]} 49. Kxf4 {[%emt 0:00:09]} Bxc2 {[%emt 0:00:04]} 50. Rxc2 {[%emt 0:00:04]} Rd2 {[%emt 0:00:07]} 51. Rc1 {[%emt 0:00:06]} Rxg2 {[%emt 0:00:43]} 52. Kxe4 {[%emt 0:00:15]} Rxa2 {[%emt 0:00:07]} 53. Kd3 {[%emt 0:00:06]} Rb2 {[%emt 0:00:21]} 0-1

[Event "XXIX Cracovia 2018"]
[Site "Krakow"]
[Date "2019.01.03"]
[Round "8"]
[White "Kvaratskhelia, Dimitri"]
[Black "Hasterok, Mateusz"]
[Result "1-0"]
[ECO "B38"]
[WhiteElo "1996"]
[BlackElo "1884"]
[Annotator "NA"]
[PlyCount "101"]
[EventDate "2018.12.27"]
[EventType "swiss"]
[EventCountry "POL"]
[SourceTitle "playchess.com"]
[Source "ChessBase"]
[SourceQuality "1"]
[TimeControl "40/5400+30:1800+30"]

1. e4 {[%emt 0:00:00]} c5 {[%emt 0:00:00]} 2. Nf3 {[%emt 0:00:00]} Nc6 {[%emt 0:00:00]} 3. c4 {[%emt 0:00:02]} g6 {[%emt 0:00:00]} 4. d4 {[%emt 0:00:07]} cxd4 {[%emt 0:00:03]} 5. Nxd4 {[%emt 0:00:03]} Bg7 {[%emt 0:00:14]} 6. Be3 {[%emt 0:00:05]} d6 {[%emt 0:01:44]} 7. Nc3 {[%emt 0:00:12]} Nf6 {[%emt 0:02:45]} 8. Be2 {[%emt 0:00:06]} Bd7 {[%emt 0:02:13]} 9. O-O {[%emt 0:00:10]} O-O {[%emt 0:01:48]} 10. Qd2 {[%emt 0:00:38]} Nxd4 {[%emt 0:02:00]} 11. Bxd4 {[%emt 0:00:21]} Bc6 {[%emt 0:00:21]} 12. f3 {[%emt 0:00:09]} a6 {[%emt 0:10:39]} 13. Rfd1 {[%emt 0:02:01]} Nd7 {[%emt 0:03:17]} 14. Bxg7 {[%emt 0:00:12]} Kxg7 {[%emt 0:00:05]} 15. f4 {[%emt 0:02:25]} Rb8 {[%emt 0:03:37]} 16. Qd4+ {[%emt 0:03:08]} Kg8 {[%emt 0:02:33]} 17. b4 {[%emt 0:00:31]} Qb6 {[%emt 0:12:14]} 18. b5 {[%emt 0:03:09]} Qxd4+ {[%emt 0:03:43]} 19. Rxd4 {[%emt 0:00:09]} Nc5 {[%emt 0:00:07]} 20. bxc6 {[%emt 0:00:19]} bxc6 {[%emt 0:00:04]} 21. Rdd1 {[%emt 0:01:06]} Rb2 {[%emt 0:00:19]} 22. Rab1 {[%emt 0:01:43]} Rfb8 {[%emt 0:00:08]} 23. Bf3 {[%emt 0:04:38]} R8b6 {[%emt 0:01:08]} 24. e5 {[%emt 0:02:15]} dxe5 {[%emt 0:00:11]} 25. fxe5 {[%emt 0:00:07]} Kg7 {[%emt 0:00:04]} 26. g3 {[%emt 0:02:48]} h5 {[%emt 0:00:20]} 27. Rxb2 {[%emt 0:00:42]} Rxb2 {[%emt 0:00:02]} 28. Bxc6 {[%emt 0:00:26]} Rc2 {[%emt 0:00:04]} 29. Rd5 {[%emt 0:01:48]} Rxc3 {[%emt 0:01:31]} 30. Rxc5 {[%emt 0:00:09]} Rc1+ {[%emt 0:00:10]} 31. Kg2 {[%emt 0:00:48]} Rc2+ {[%emt 0:00:04]} 32. Kf3 {[%emt 0:00:44]} Rxa2 {[%emt 0:00:07]} 33. h4 {[%emt 0:00:11]} Ra3+ {[%emt 0:00:12]} 34. Kf4 {[%emt 0:00:10]} Rc3 {[%emt 0:00:06]} 35. Bd5 {[%emt 0:00:56]} e6 {[%emt 0:00:44]} 36. Bc6 {[%emt 0:01:03]} Kh6 {[%emt 0:00:48]} 37. Be8 {[%emt 0:00:41]} Rc1 {[%emt 0:01:27]} 38. Rc7 {[%emt 0:00:43]} Rf1+ {[%emt 0:00:10]} 39. Ke3 {[%emt 0:00:27]} Kg7 {[%emt 0:00:06]} 40. c5 {[%emt 0:00:00]} Kf8 {[%emt 0:00:00]} 41. Bc6 {[%emt 0:00:55]} Rc1 {[%emt 0:00:37]} 42. Be4 {[%emt 0:00:50]} a5 {[%emt 0:00:18]} 43. c6 {[%emt 0:00:07]} a4 {[%emt 0:00:09]} 44. Ra7 {[%emt 0:00:05]} Ke8 {[%emt 0:00:27]} 45. Rxa4 {[%emt 0:00:11]} Kd8 {[%emt 0:00:09]} 46. Ra8+ {[%emt 0:00:08]} Ke7 {[%emt 0:00:12]} 47. Ra7+ {[%emt 0:00:07]} Ke8 {[%emt 0:00:07]} 48. Bd3 {[%emt 0:00:59]} Kd8 {[%emt 0:00:21]} 49. Rd7+ {[%emt 0:00:18]} Kc8 {[%emt 0:00:10]} 50. Ba6+ {[%emt 0:01:32]} Kb8 {[%emt 0:00:05] R} 51. Rb7+ {[%emt 0:00:09]} 1-0